bitfinex/quotes_SOLUSD_20251117
["timestamp","ask_amount","ask_price","bid_price","bid_amount"]
[1763420169891,4.04559053,132.1,132.08,7.4]
[1763420170094,4.04559053,132.09,132.08,7.4]
[1763420170985,4.04559053,132.09,132.06,18.12096]
[1763420171183,9.87991342,132.14,132.05,7.4]
[1763420171184,3.35559053,132.07,132.05,7.4]
[1763420171383,3.35559053,132.07,132.03,7.4]
[1763420171688,0.69,132.06,132.04,9.78882769]
[1763420171890,4.04559053,132.06,132.03,25.52096]
[1763420172205,4.04559053,132.06,132.03,7.4]
[1763420172380,0.67,132.05,132.03,7.4]
[1763420179111,4.02559053,132.05,132.03,7.4]
[1763420179485,0.72,132.04,132.03,7.4]
[1763420184507,5.96508248,132.04,132.03,7.4]
[1763420184904,0.72,132.04,132.03,7.4]
[1763420185892,5.96508248,132.04,132.03,7.4]
[1763420186115,0.72,132.04,132.03,7.4]
[1763420189814,11.87991342,132.1,132.03,9.78882769]
[1763420189815,9.87991342,132.1,132.03,9.78882769]
[1763420190020,18.12096,132.13,132.03,15.03391017]
[1763420190021,0.72,132.07,132.03,15.03391017]
[1763420190409,0.72,132.07,132.05,9.78882769]
[1763420190801,0.72,132.07,132.03,15.03391017]
[1763420191015,18.84096,132.07,132.06,18.12096]
[1763420192228,0.72,132.07,132.06,18.12096]
[1763420195504,5.96508248,132.07,132.04,9.78882769]
[1763420195721,5.24508248,132.06,132.02,7.5]
[1763420195917,5.24508248,132.06,132.04,18.12096]
[1763420195918,5.24508248,132.05,132.04,18.12096]
[1763420196104,5.96508248,132.05,132.02,7.5]
[1763420196418,5.96508248,132.04,132.02,17.46614675]
[1763420196826,0.72,132.03,132.02,17.46614675]
[1763420198008,0.72,132.03,132.02,27.25497444]
[1763420200020,0.72,132.04,132.02,27.25497444]
[1763420200823,0.72,132.04,132.02,17.28882769]
[1763420204526,0.69,132.04,132.03,9.78882769]
[1763420204733,18.12096,132.05,132.02,7.5]
[1763420204734,6.38001229,132.12,132.02,8.25746099]
[1763420205043,0.69,132.07,132.02,8.25746099]
[1763420206316,23.36604248,132.05,132.02,7.5]
[1763420206729,0.69,132.04,132.02,7.5]
[1763420207036,0.69,132.04,131.99,9.78882769]
[1763420207240,0.69,132.04,131.99,17.28882769]
[1763420207724,23.36604248,132.05,131.99,17.28882769]
[1763420208640,5.24508248,132.05,131.99,17.28882769]
[1763420209016,0.69,132.06,131.99,17.28882769]
[1763420209232,5.24508248,132.06,132.01,9.78882769]
[1763420209425,5.93508248,132.06,132.01,9.78882769]
[1763420209824,5.24508248,132.06,132.01,9.78882769]
[1763420210022,5.24508248,132.06,132.01,121.28882769]
[1763420210336,5.24508248,132.06,132.01,17.28882769]
[1763420210746,5.93508248,132.06,132.01,17.28882769]
[1763420211440,5.24508248,132.06,132.01,18.04634605]
[1763420211943,5.93508248,132.06,132.01,18.04634605]
[1763420212124,5.24508248,132.06,132.01,18.04634605]
[1763420212329,5.24508248,132.06,132.01,17.28882769]
[1763420212844,5.24508248,132.05,132.01,17.28882769]
[1763420217127,11.04478885,132.06,132.01,17.28882769]
[1763420217331,5.93508248,132.06,132.01,17.28882769]
[1763420217652,11.04478885,132.06,132.01,17.28882769]
[1763420217838,5.93508248,132.06,132.01,17.28882769]
[1763420218134,11.04478885,132.06,132.01,17.28882769]
[1763420218334,5.93508248,132.06,132.01,17.28882769]
[1763420218642,11.04478885,132.06,132.01,17.28882769]
[1763420218842,5.93508248,132.06,132.01,17.28882769]
[1763420219043,11.04478885,132.06,132.01,17.28882769]
[1763420219235,5.93508248,132.06,132.01,17.28882769]
[1763420219436,11.04478885,132.06,132.01,17.28882769]
[1763420219637,5.93508248,132.06,132.01,17.28882769]
[1763420219831,11.04478885,132.06,132.01,17.28882769]
[1763420220034,5.93508248,132.06,132.01,17.28882769]
[1763420220232,11.04478885,132.06,132.01,17.28882769]
[1763420220432,5.93508248,132.06,132.01,17.28882769]
[1763420220633,0.69,132.05,132.01,17.28882769]
[1763420221035,11.04478885,132.06,132.01,17.28882769]
[1763420221238,5.93508248,132.06,132.01,17.28882769]
[1763420221435,11.04478885,132.06,132.01,17.28882769]
[1763420221751,5.93508248,132.06,132.01,17.28882769]
[1763420221954,11.04478885,132.06,132.01,17.28882769]
[1763420222156,5.93508248,132.06,132.01,17.28882769]
[1763420222354,10.35478885,132.06,132.01,17.28882769]
[1763420222667,11.04478885,132.05,132.01,17.28882769]
[1763420222857,5.93508248,132.05,132.01,17.28882769]
[1763420223365,11.04478885,132.05,132.01,17.28882769]
[1763420223560,5.24508248,132.05,132.01,17.28882769]
[1763420223767,5.93508248,132.05,132.01,17.28882769]
[1763420223961,11.04478885,132.05,132.01,17.28882769]
[1763420224149,5.93508248,132.05,132.01,17.28882769]
[1763420224352,11.04478885,132.05,132.01,17.28882769]
[1763420224664,5.93508248,132.05,132.01,17.28882769]
[1763420224873,11.04478885,132.05,132.01,17.28882769]
[1763420225060,5.93508248,132.05,132.01,17.28882769]
[1763420225248,11.04478885,132.05,132.01,17.28882769]
[1763420225457,5.93508248,132.05,132.01,17.28882769]
[1763420225640,11.04478885,132.05,132.01,17.28882769]
[1763420225840,5.93508248,132.05,132.01,17.28882769]
[1763420226041,11.04478885,132.05,132.01,17.28882769]
[1763420226243,5.93508248,132.05,132.01,17.28882769]
[1763420226554,0.69,132.05,132.01,17.28882769]
[1763420227443,5.79970637,132.05,132.01,17.28882769]
[1763420227847,0.69,132.05,132.01,17.28882769]
[1763420228057,5.79970637,132.05,132.01,17.28882769]
[1763420229042,11.04478885,132.05,132.01,17.28882769]
[1763420229246,0.69,132.04,132.01,17.28882769]
[1763420229444,5.79970637,132.04,132.01,17.28882769]
[1763420233662,5.80970637,132.04,132.01,17.28882769]
[1763420237264,5.80970637,132.04,131.99,9.78882769]
[1763420238553,5.80970637,132.04,131.99,5.24508248]
[1763420238860,0.72,132.03,131.99,5.24508248]
[1763420240157,0.72,132.03,131.99,12.74508248]
[1763420240354,5.82970637,132.03,131.99,12.74508248]
[1763420240550,0.72,132.03,131.99,12.74508248]
[1763420240865,5.10970637,132.03,131.99,12.74508248]
[1763420241072,0.72,132.02,131.99,12.74508248]
[1763420241268,5.82970637,132.03,131.99,12.74508248]
[1763420241465,0.72,132.03,131.99,12.74508248]
[1763420241656,5.10970637,132.04,131.99,12.74508248]
[1763420241857,0.72,132.03,131.99,12.74508248]
[1763420243841,5.10970637,132.04,132.0,5.24508248]
[1763420244042,6.38001229,132.07,132.02,9.78882769]
[1763420244043,23.95066637,132.06,132.02,9.78882769]
[1763420244351,5.82970637,132.05,132.02,9.78882769]
[1763420244757,0.72,132.04,132.01,3.3562472]
[1763420244964,0.72,132.04,132.02,9.78882769]
[1763420245769,5.82970637,132.04,131.99,3.3562472]
[1763420245972,5.82970637,132.04,131.99,13.14507489]
[1763420246166,0.72,132.03,131.99,13.14507489]
[1763420248072,0.72,132.03,132.0,3.3562472]
[1763420250976,0.72,132.03,132.01,9.78882769]
[1763420253871,5.84708959,132.03,132.01,9.78882769]
[1763420254063,0.72,132.03,132.01,9.78882769]
[1763420255379,5.84708959,132.03,132.01,9.78882769]
[1763420255565,0.72,132.03,132.01,9.78882769]
[1763420255765,5.84708959,132.03,132.01,9.78882769]
[1763420256079,0.72,132.03,132.01,9.78882769]
[1763420256259,5.84708959,132.03,132.01,17.28882769]
[1763420256465,0.72,132.03,132.01,17.28882769]
[1763420256664,5.84708959,132.03,132.01,17.28882769]
[1763420256963,0.72,132.03,132.01,17.28882769]
[1763420257170,5.84708959,132.03,132.01,17.28882769]
[1763420257370,0.72,132.03,132.01,17.28882769]
[1763420257570,5.84708959,132.03,132.01,17.28882769]
[1763420257872,0.72,132.03,132.01,17.28882769]
[1763420258071,5.84708959,132.03,132.01,17.28882769]
[1763420258254,0.72,132.03,132.01,17.28882769]
[1763420258455,5.84708959,132.03,132.01,17.28882769]
[1763420258663,0.72,132.03,132.01,17.28882769]
[1763420258874,5.84708959,132.03,132.01,17.28882769]
[1763420259074,0.72,132.03,132.01,17.28882769]
[1763420259274,5.84708959,132.03,132.01,17.28882769]
[1763420259468,0.72,132.03,132.01,17.28882769]
[1763420259761,5.84708959,132.03,132.01,17.28882769]
[1763420259969,0.72,132.03,132.01,17.28882769]
[1763420260173,5.84708959,132.03,132.01,17.28882769]
[1763420260369,0.72,132.03,132.01,17.28882769]
[1763420260579,5.84708959,132.03,132.01,17.28882769]
[1763420260771,0.72,132.03,132.01,17.28882769]
[1763420260973,5.84708959,132.03,132.01,17.28882769]
[1763420261174,0.72,132.03,132.01,17.28882769]
[1763420261360,5.84708959,132.03,132.01,17.28882769]
[1763420261561,0.72,132.03,132.01,17.28882769]
[1763420261780,5.84708959,132.03,132.02,22.81802624]
[1763420262080,0.72,132.03,132.02,22.81802624]
[1763420262265,5.84708959,132.03,132.02,22.81802624]
[1763420262581,0.72,132.03,132.02,22.81802624]
[1763420262779,5.84708959,132.03,132.02,22.81802624]
[1763420268371,9.81391346,132.03,132.02,22.81802624]
[1763420278205,9.81391346,132.03,132.0,9.78882769]
[1763420278390,5.12708959,132.02,132.01,19.60274115]
[1763420278995,5.78708959,132.02,132.01,9.81391346]
[1763420279679,5.12708959,132.02,132.01,9.81391346]
[1763420280096,22.08778387,132.03,132.01,9.81391346]
[1763420280290,22.74778387,132.03,132.01,9.81391346]
[1763420280904,22.08778387,132.03,132.01,9.81391346]
[1763420281093,0.66,132.02,132.01,9.81391346]
[1763420283103,22.08778387,132.03,132.01,19.60274115]
[1763420283281,22.74778387,132.03,132.01,19.60274115]
[1763420283487,0.66,132.02,132.01,19.60274115]
[1763420284308,23.90953543,132.02,131.97,9.78882769]
[1763420284487,5.12857543,132.01,132.0,29.39156884]
[1763420284689,5.78857543,132.01,132.0,29.39156884]
[1763420286014,5.12857543,132.01,132.0,29.39156884]
[1763420286314,5.78857543,132.01,132.0,29.39156884]
[1763420286894,0.66,132.01,132.0,29.39156884]
[1763420288410,18.78096,132.02,132.01,9.78882769]
[1763420288714,23.90826281,132.02,132.01,9.78882769]
[1763420288905,23.90826281,132.02,131.98,9.78882769]
[1763420289212,18.78096,132.02,132.01,28.56978769]
[1763420289418,23.90831237,132.02,132.01,28.56978769]
[1763420291393,23.90851067,132.02,132.01,28.56978769]
[1763420303712,23.95851067,132.02,132.01,28.56978769]
[1763420308116,34.45207655,132.02,131.96,0.17152277]
[1763420308415,5.24678294,131.97,131.96,0.17152277]
[1763420308936,5.95678294,131.97,131.96,0.17152277]
[1763420309136,29.20529361,131.97,131.96,0.17152277]
[1763420309853,40.86151489,131.97,131.95,0.2]
[1763420310147,16.33111655,131.96,131.95,0.2]
[1763420312737,20.44430792,131.96,131.94,0.2]
[1763420312913,16.33111655,131.95,131.94,0.2]
[1763420313519,16.33111655,131.95,131.93,0.2]
[1763420313725,18.12096,131.92,131.91,0.2]
[1763420314035,28.49529361,131.92,131.91,0.2]
[1763420314222,29.20529361,131.92,131.91,0.2]
[1763420316329,24.07774294,131.92,131.91,0.2]
[1763420317123,23.36774294,131.92,131.91,0.2]
[1763420317527,24.07774294,131.92,131.91,0.2]
[1763420336170,9.96614675,131.94,131.91,0.2]
[1763420336370,10.32261372,131.96,131.91,0.91]
[1763420336549,18.12096,131.95,131.91,0.91]
[1763420336868,18.12096,131.95,131.92,0.71]
[1763420337064,18.12096,131.95,131.92,6.15678294]
[1763420337267,5.24678294,131.98,131.93,9.78882769]
[1763420337491,5.07593412,131.99,131.94,5.24678294]
[1763420337679,10.32130109,132.02,131.96,15.03561063]
[1763420337866,3.96682387,132.03,131.98,15.03561063]
[1763420338192,3.96682387,132.03,132.0,9.78882769]
[1763420338470,23.36774294,132.04,132.0,9.78882769]
[1763420338471,5.24678294,132.05,132.0,15.03561063]
[1763420338670,5.24678294,132.03,132.01,0.71]
[1763420338860,5.74260863,132.06,131.99,5.24678294]
[1763420338861,5.24678294,132.02,131.99,5.95678294]
[1763420339051,5.24678294,132.0,131.99,5.24678294]
[1763420339776,5.24678294,132.0,131.95,0.71]
[1763420339777,24.03774294,132.0,131.95,0.71]
[1763420339946,0.67,131.99,131.96,9.78882769]
[1763420340151,5.24678294,131.97,131.96,9.78882769]
[1763420341076,5.24678294,131.97,131.95,0.71]
[1763420341378,18.12096,131.93,131.91,0.2]
[1763420341883,5.91678294,131.92,131.91,0.2]
[1763420347876,15.13349608,131.92,131.91,0.2]
[1763420348175,15.88292969,131.92,131.91,0.2]
[1763420348380,24.94641489,131.92,131.91,0.2]
[1763420348778,19.69963195,131.92,131.91,0.2]
[1763420348978,24.94641489,131.92,131.91,0.2]
[1763420351577,27.90978769,131.89,131.87,0.2]
[1763420351785,19.69894845,131.88,131.87,0.2]
[1763420352087,24.50213982,131.88,131.87,0.2]
[1763420352470,19.25535688,131.88,131.87,0.2]
[1763420352691,10.33897414,131.88,131.87,0.2]
[1763420352876,5.93678294,131.88,131.87,0.2]
[1763420353688,15.29675725,131.88,131.87,0.2]
[1763420353996,26.24190383,131.88,131.87,0.2]
[1763420355873,28.24190383,131.88,131.87,0.2]
[1763420356270,26.24190383,131.88,131.87,0.2]
[1763420356474,28.24190383,131.88,131.87,0.2]
[1763420356680,15.74833795,131.88,131.87,0.2]
[1763420356878,15.90292969,131.88,131.87,0.2]
[1763420357182,20.99512089,131.88,131.87,0.2]
[1763420358773,36.03073152,131.88,131.87,0.2]
[1763420358970,36.03073152,131.88,131.84,0.2]
[1763420358971,9.78882769,131.87,131.84,0.2]
[1763420359188,9.78882769,131.87,131.77,2.899]
[1763420359189,23.36774294,131.84,131.77,2.899]
[1763420359394,23.36774294,131.8,131.77,2.899]
[1763420359574,18.12096,131.83,131.77,2.899]
[1763420359896,18.12096,131.79,131.77,2.899]
[1763420360268,5.24678294,131.8,131.77,2.899]
[1763420360671,18.12096,131.79,131.77,8.14578294]
[1763420360868,18.12096,131.81,131.77,8.14578294]
[1763420361472,23.36774294,131.81,131.77,2.899]
[1763420362269,18.12096,131.81,131.77,2.899]
[1763420362496,5.24678294,131.8,131.77,2.899]
[1763420363693,23.36774294,131.81,131.77,2.899]
[1763420366791,21.49068808,131.81,131.77,2.899]
[1763420368699,21.49068808,131.81,131.7,2.899]
[1763420368700,3.36972808,131.78,131.7,2.899]
[1763420368877,18.12096,131.77,131.71,24.86041616]
[1763420369082,3.36972808,131.76,131.71,24.86041616]
[1763420369284,21.49068808,131.77,131.72,3.36972808]
[1763420369601,9.96614675,131.8,131.74,3.36972808]
[1763420369794,5.74322469,131.84,131.75,3.36972808]
[1763420370200,21.49068808,131.81,131.75,3.36972808]
[1763420370388,3.36972808,131.81,131.75,23.12470252]
[1763420370689,21.49068808,131.81,131.75,23.12470252]
[1763420370892,3.36972808,131.81,131.75,23.12470252]
[1763420371296,3.36972808,131.81,131.76,3.36972808]
[1763420373017,18.12096,131.82,131.76,4.03972808]
[1763420373188,3.36972808,131.81,131.76,4.03972808]
[1763420374118,18.12096,131.82,131.76,16.05755577]
[1763420374283,18.12096,131.82,131.79,3.36972808]
[1763420374691,18.12096,131.82,131.79,4.03972808]
[1763420374889,18.12096,131.82,131.79,10.45882769]
[1763420375210,18.12096,131.82,131.76,2.899]
[1763420375211,18.12096,131.82,131.78,3.36972808]
[1763420375408,18.12096,131.82,131.78,13.82855577]
[1763420375605,18.12096,131.82,131.78,14.49855577]
[1763420376901,18.12096,131.82,131.78,19.14960321]
[1763420378912,8.02077552,131.8,131.75,8.02077552]
[1763420379113,8.02077552,131.8,131.75,8.69077552]
[1763420379314,8.02077552,131.8,131.75,26.81173552]
[1763420381315,18.79096,131.81,131.75,26.81173552]
[1763420381499,8.02077552,131.8,131.75,26.81173552]
[1763420382216,8.02077552,131.8,131.75,8.02077552]
[1763420382417,8.02077552,131.81,131.76,8.71077552]
[1763420384112,8.02077552,131.81,131.76,11.60977552]
[1763420384316,8.71077552,131.81,131.77,0.69]
[1763420384620,8.02077552,131.8,131.77,0.69]
[1763420385114,8.02077552,131.8,131.76,2.899]
[1763420385115,8.71077552,131.8,131.76,2.899]
[1763420385419,8.71077552,131.8,131.76,3.589]
[1763420387117,0.69,131.8,131.76,3.589]
[1763420387308,8.71077552,131.8,131.76,3.589]
[1763420387498,26.83173552,131.8,131.76,3.589]
[1763420390701,18.12096,131.8,131.77,0.69]
[1763420391216,18.81096,131.8,131.77,0.69]
[1763420392121,18.12096,131.8,131.77,0.69]
[1763420394326,5.11224095,131.79,131.77,0.69]
[1763420395806,5.11224095,131.79,131.77,3.589]
[1763420398023,5.11224095,131.79,131.78,0.69]
[1763420398230,5.11224095,131.79,131.78,3.589]
[1763420400267,5.11224095,131.79,131.78,10.47882769]
[1763420400530,5.12592196,131.82,131.78,4.05978921]
[1763420400730,5.12592196,131.84,131.81,3.36978921]
[1763420400921,5.12592196,131.85,131.79,10.47882769]
[1763420401105,11.50453784,131.87,131.84,3.36978921]
[1763420401307,5.12592196,131.86,131.83,3.36978921]
[1763420401528,5.12592196,131.87,131.82,4.05978921]
[1763420401729,23.24688196,131.86,131.81,4.05978921]
[1763420401906,5.12592196,131.85,131.82,4.05978921]
[1763420402228,6.37861588,131.9,131.84,13.1586169]
[1763420402421,23.24324735,131.89,131.85,0.69]
[1763420402614,5.12228735,131.88,131.85,0.69]
[1763420402816,5.12228735,131.88,131.79,4.05978921]
[1763420402817,3.36978921,131.86,131.79,4.05978921]
[1763420403013,5.12228735,131.85,131.81,3.36978921]
[1763420403426,5.12228735,131.85,131.82,0.69]
[1763420404028,5.81228735,131.85,131.82,0.69]
[1763420404233,0.69,131.84,131.8,0.69]
[1763420404536,5.81228735,131.85,131.81,0.69]
[1763420404734,5.81228735,131.85,131.81,4.05978921]
[1763420404919,5.12228735,131.85,131.81,4.05978921]
[1763420405121,5.12228735,131.85,131.83,3.36978921]
[1763420405339,18.12096,131.86,131.83,3.36978921]
[1763420405523,18.12096,131.86,131.84,0.69]
[1763420405723,0.69,131.88,131.84,4.05978921]
[1763420405960,18.12096,131.88,131.85,0.69]
[1763420406633,22.18074921,131.88,131.84,0.69]
[1763420406954,18.81096,131.88,131.84,0.69]
[1763420407258,0.69,131.87,131.82,3.36978921]
[1763420407446,9.17524027,131.87,131.83,0.69]
[1763420407770,3.36978921,131.86,131.82,0.69]
[1763420407965,3.36978921,131.85,131.81,0.69]
[1763420408133,4.05978921,131.85,131.81,0.69]
[1763420408331,0.69,131.85,131.81,0.69]
[1763420408640,0.69,131.85,131.81,4.05978921]
[1763420409037,0.69,131.85,131.82,0.69]
[1763420410069,0.69,131.85,131.81,0.69]
[1763420410644,4.05978921,131.85,131.81,0.69]
[1763420410845,4.05978921,131.85,131.74,13.47915684]
[1763420410846,3.36978921,131.82,131.76,0.69]
[1763420411052,3.36978921,131.82,131.68,22.84]
[1763420411053,3.36978921,131.81,131.75,3.36978921]
[1763420411255,3.36978921,131.81,131.76,0.69]
[1763420411430,3.36978921,131.8,131.76,0.69]
[1763420411833,4.06978921,131.8,131.76,0.69]
[1763420412456,0.7,131.79,131.76,0.69]
[1763420412650,3.36978921,131.8,131.76,0.69]
[1763420412960,8.7246125,131.8,131.76,0.69]
[1763420413564,8.7246125,131.79,131.72,23.62096]
[1763420413741,8.0246125,131.78,131.73,10.44882769]
[1763420413940,8.0246125,131.77,131.73,10.44882769]
[1763420414140,8.0246125,131.77,131.74,0.66]
[1763420414341,8.7246125,131.76,131.72,0.66]
[1763420414858,8.0246125,131.75,131.72,0.66]
[1763420415057,8.7246125,131.75,131.71,0.66]
[1763420415466,18.82096,131.75,131.71,0.66]
[1763420415638,8.7246125,131.77,131.71,8.6846125]
[1763420415837,26.8455725,131.77,131.72,8.0246125]
[1763420416158,0.7,131.79,131.74,8.0246125]
[1763420416357,0.7,131.79,131.75,8.0246125]
[1763420416551,18.82096,131.79,131.75,8.0246125]
[1763420416737,0.7,131.78,131.74,8.0246125]
[1763420417054,0.7,131.78,131.74,0.66]
[1763420417861,8.7246125,131.78,131.74,0.66]
[1763420418432,3.97501739,131.77,131.74,0.66]
[1763420418862,4.67501739,131.77,131.74,0.66]
[1763420419240,4.67501739,131.77,131.74,6.16]
[1763420419741,4.67501739,131.77,131.73,5.5]
[1763420419742,26.8455725,131.76,131.73,5.5]
[1763420420164,8.7246125,131.75,131.73,5.5]
[1763420420753,0.7,131.74,131.73,5.5]
[1763420421561,0.7,131.74,131.7,0.71]
[1763420421562,18.12096,131.73,131.7,0.71]
[1763420421767,0.7,131.74,131.7,0.71]
[1763420422067,0.7,131.74,131.7,8.7346125]
[1763420422267,0.7,131.74,131.71,0.71]
[1763420422461,0.7,131.74,131.66,9.78882769]
[1763420422652,0.7,131.74,131.7,8.0246125]
[1763420423146,8.7246125,131.74,131.69,0.71]
[1763420423352,26.8455725,131.74,131.69,8.7346125]
[1763420423661,0.7,131.73,131.7,0.71]
[1763420425045,0.7,131.73,131.66,0.71]
[1763420425046,26.1455725,131.71,131.66,0.71]
[1763420425238,18.12096,131.71,131.65,8.0246125]
[1763420425455,0.7,131.7,131.65,8.0246125]
[1763420425768,0.7,131.7,131.63,18.22096]
[1763420425769,0.7,131.7,131.66,8.0246125]
[1763420426140,8.7246125,131.7,131.63,0.1]
[1763420426456,8.7246125,131.7,131.65,8.0246125]
[1763420426660,0.7,131.69,131.65,8.0246125]
[1763420426975,18.12096,131.71,131.67,12.59461118]
[1763420427162,0.7,131.7,131.67,12.59461118]
[1763420427543,0.7,131.7,131.65,0.67]
[1763420427846,0.7,131.7,131.67,12.59461118]
[1763420428054,0.7,131.7,131.66,13.26461118]
[1763420428244,0.7,131.7,131.64,0.67]
[1763420428452,13.29461118,131.7,131.65,12.59461118]
[1763420428853,0.7,131.69,131.65,12.59461118]
[1763420429052,0.7,131.69,131.65,13.26461118]
[1763420429746,0.7,131.69,131.65,0.67]
[1763420429944,0.7,131.69,131.65,13.26461118]
[1763420431180,0.7,131.69,131.65,0.67]
[1763420431375,0.7,131.69,131.65,13.26461118]
[1763420433058,13.29461118,131.69,131.64,12.59461118]
[1763420433563,31.41557118,131.68,131.63,13.36461118]
[1763420433944,0.7,131.67,131.63,12.69461118]
[1763420435169,0.7,131.67,131.63,0.1]
[1763420435745,0.7,131.67,131.63,12.69461118]
[1763420436966,13.29461118,131.67,131.63,0.1]
[1763420437350,0.7,131.66,131.63,0.1]
[1763420445580,0.7,131.66,131.63,13.36461118]
[1763420445780,30.71557118,131.69,131.63,13.36461118]
[1763420446109,0.67,131.68,131.64,12.59461118]
[1763420446307,0.67,131.68,131.63,0.1]
[1763420446481,0.67,131.68,131.64,12.59461118]
[1763420447917,0.67,131.7,131.66,12.59461118]
[1763420448080,13.26461118,131.73,131.68,12.59461118]
[1763420448280,18.12096,131.72,131.68,12.59461118]
[1763420448497,18.79096,131.72,131.68,12.59461118]
[1763420448812,0.67,131.71,131.68,12.59461118]
[1763420450885,0.67,131.71,131.67,13.26461118]
[1763420451283,13.26461118,131.71,131.66,22.38343887]
[1763420451483,13.26461118,131.71,131.66,131.88343887]
[1763420451697,0.67,131.7,131.66,132.55343887]
[1763420452396,0.67,131.7,131.66,122.76461118]
[1763420454399,13.26461118,131.7,131.66,110.17]
[1763420454905,5.94381355,131.7,131.66,110.17]
[1763420455305,5.27381355,131.7,131.66,110.17]
[1763420455476,0.67,131.69,131.66,110.17]
[1763420456888,5.27381355,131.7,131.66,110.17]
[1763420457120,5.94381355,131.7,131.66,110.17]
[1763420457416,0.67,131.7,131.66,11.44381355]
[1763420458421,3.97683513,131.69,131.66,11.44381355]
[1763420458827,3.97683513,131.69,131.67,0.67]
[1763420459031,3.97683513,131.69,131.66,5.94381355]
[1763420459194,4.64683513,131.69,131.66,5.94381355]
[1763420460094,4.64683513,131.69,131.66,0.67]
[1763420460295,4.64683513,131.69,131.63,0.1]
[1763420460296,5.27381355,131.67,131.63,0.1]
[1763420460519,5.27381355,131.66,131.63,0.1]
[1763420460723,5.94381355,131.66,131.63,0.1]
[1763420461031,0.67,131.65,131.63,0.1]
[1763420461922,5.94381355,131.65,131.63,0.1]
[1763420462131,5.27381355,131.64,131.63,0.1]
[1763420462423,0.67,131.64,131.63,0.1]
[1763420464602,5.11638444,131.65,131.63,0.1]
[1763420465097,5.78638444,131.65,131.63,0.1]
[1763420465305,5.11638444,131.65,131.63,0.1]
[1763420465626,0.67,131.64,131.63,0.1]
[1763420467003,5.94381355,131.64,131.63,0.1]
[1763420467229,0.67,131.64,131.63,0.1]
[1763420468106,5.11638444,131.65,131.63,0.1]
[1763420468309,0.67,131.65,131.63,0.1]
[1763420468509,5.79035542,131.65,131.63,0.1]
[1763420470536,0.67,131.64,131.63,0.1]
[1763420472812,11.11416897,131.65,131.63,0.1]
[1763420473342,0.72,131.65,131.63,0.1]
[1763420474342,0.72,131.67,131.64,5.27381355]
[1763420474843,0.72,131.67,131.64,5.94381355]
[1763420475143,0.72,131.67,131.63,0.1]
[1763420475144,0.72,131.67,131.63,0.77]
[1763420475359,0.72,131.67,131.63,6.04381355]
[1763420477034,5.27381355,131.66,131.63,0.1]
[1763420477424,5.99381355,131.66,131.63,0.1]
[1763420478332,5.27381355,131.66,131.63,0.1]
[1763420478538,5.97381355,131.66,131.63,0.1]
[1763420479115,0.7,131.66,131.63,0.77]
[1763420479921,0.7,131.66,131.63,6.04381355]
[1763420480128,0.7,131.66,131.63,5.37381355]
[1763420481034,0.7,131.66,131.63,0.1]
[1763420483839,0.7,131.66,131.63,0.77]
[1763420484149,0.7,131.66,131.63,0.1]
[1763420484349,18.12096,131.67,131.63,0.77]
[1763420484556,18.82096,131.67,131.63,0.77]
[1763420484753,18.12096,131.67,131.63,0.77]
[1763420484934,0.7,131.66,131.63,0.77]
[1763420485654,0.7,131.66,131.63,0.1]
[1763420486151,18.82096,131.67,131.63,0.77]
[1763420486340,18.82096,131.67,131.63,6.04381355]
[1763420486654,18.82096,131.67,131.64,5.27381355]
[1763420487036,18.12096,131.67,131.64,5.27381355]
[1763420487237,0.7,131.66,131.63,5.37381355]
[1763420488848,0.7,131.66,131.63,3.47654532]
[1763420490255,0.7,131.66,131.63,4.14654532]
[1763420490564,0.7,131.66,131.63,3.47654532]
[1763420498169,5.82708748,131.66,131.63,0.1]
[1763420498684,0.7,131.65,131.63,0.1]
[1763420499943,0.7,131.65,131.63,3.47654532]
[1763420501771,0.7,131.65,131.63,0.1]
[1763420501978,18.12096,131.64,131.63,0.1]
[1763420502149,27.3245928,131.64,131.63,0.1]